Workbook

Sheet Escalators
A1: IT Capex Expenditure Template | H1: Menu
A2: Escalators
B4: 2006 | C4: 2007 | D4: 2008 | E4: 2009 | F4: 2010 | G4: 2011 | H4: 2012 | I4: 2013 | J4: 2014 | K4: 2015 | L4: 2016 | M4: 2017 | N4: 2018 | O4: 2019 | P4: 2020
A6: INFLATION ESCALATION
A7: CPI | B7: 149.8 | C7: 155.7 | D7: 158.6 | E7: 166.5 | F7: 168.6 | G7: 173.3 | H7: 179.4 | I7: 182.9951904 | J7: 186.9498998 | K7: 193.7346069 | L7: 198.7717066 | M7: 203.939771 | N7: 209.2422051 | O7: 214.6825024 | P7: 220.2642474
H8: 99.8 | I8: 101.8 | J8: 104 | K8: 107.7743242 | L8: =K8*(1+L9) -> 110.4686823 | M8: 113.2303994 | N8: 116.0611594 | O8: 118.9626883 | P8: 121.9367556
A9: Inflation | L9: 0.025 | M9: 0.025 | N9: 0.025 | O9: 0.025 | P9: 0.025
A10: Real cost year | B10: 2015
A11: ="Conversion from nominal to real $"&B10 -> Conversion from nominal to real $2015 | B11: =HLOOKUP($B$10,$B$4:$P$7,4)/B7 -> 1.29328843 | C11: =HLOOKUP($B$10,$B$4:$P$7,4)/C7 -> 1.244281354 | D11: =HLOOKUP($B$10,$B$4:$P$7,4)/D7 -> 1.221529678 | E11: =HLOOKUP($B$10,$B$4:$P$7,4)/E7 -> 1.163571212 | F11: 1.142475948 | G11: 1.111101953 | H11: 1.082968223 | I11: 1.056818344 | J11: 1.033765005 | K11: 1.012422837 | L11: =HLOOKUP($B$10,$B$4:$P$8,5)/L8 -> 0.9756097561 | M11: =HLOOKUP($B$10,$B$4:$P$8,5)/M8 -> 0.9518143962 | N11: =HLOOKUP($B$10,$B$4:$P$8,5)/N8 -> 0.9285994109 | O11: =HLOOKUP($B$10,$B$4:$P$8,5)/O8 -> 0.9059506448 | P11: =HLOOKUP($B$10,$B$4:$P$8,5)/P8 -> 0.8838542876

Sheet Assumptions
A1: =Escalators!A1 -> IT Capex Expenditure Template | E1: Menu
A2: Assumptions
A4: LABOUR RATES
A6: Labour Rate Assumption 2016 - 2020
C8: PCN Mhr Rate ($/Mhr) | D8: 83
C9: CPN Mhr Rate ($/Mhr) | D9: 75
C10: NS Mhr Rate ($/Mhr) | D10: 90
C11: IT Internal Mhr Rate ($/Mhr) | D11: 90
C12: Corporate Mhr Rate ($/Mhr) | D12: 98
C13: CSG Mhr Rate ($/Mhr) | D13: 57

Sheet Export CP
A1: =Escalators!A1 -> IT Capex Expenditure Template
A2: Export
A4: EXPORT
A6: CITIPOWER | D6: 2011 | E6: 2012 | F6: 2013 | G6: 2014 | H6: 2015 | I6: 2016 | J6: 2017 | K6: 2018 | L6: 2019 | M6: 2020
D7: $'000 nom | E7: $'000 nom | F7: $'000 nom | G7: $'000 nom | H7: $'000, $2015 | I7: $'000, $2015 | J7: $'000, $2015 | K7: $'000, $2015 | L7: $'000, $2015 | M7: $'000, $2015
C8: Description | D8: Actual | E8: Actual | F8: F'cast | G8: F'cast | H8: F'cast | I8: F'cast | J8: F'cast | K8: F'cast | L8: F'cast | M8: F'cast
B9: 200 | C9: Computers | I9: =SUM(CP!B37:D37) -> 21621.53377 | J9: =SUM(CP!E37:G37) -> 21153.40404 | K9: =SUM(CP!H37:J37) -> 16113.5127 | L9: =SUM(CP!K37:M37) -> 11797.94833 | M9: =SUM(CP!N37:P37) -> 9056.383957
B10: 205 | C10: IT Metering Data Services | I10: =SUM(CP!B86:D86) -> 388.0822861 | J10: =SUM(CP!E86:G86) -> 551.0274236 | K10: =SUM(CP!H86:J86) -> 234.0248571 | L10: =SUM(CP!K86:M86) -> 141.5990736 | M10: =SUM(CP!N86:P86) -> 917.5407248

Sheet CP
A1: =Escalators!A1 -> IT Capex Expenditure Template
A2: CitiPower Summary
A6: IT Category | B6: 2016 CP SCS | E6: 2017 CP SCS | H6: 2018 CP SCS | K6: 2019 CP SCS | N6: 2020 CP SCS
B7: Material | C7: Contract | D7: Labour | E7: Material | F7: Contract | G7: Labour | H7: Material | I7: Contract | J7: Labour | K7: Material | L7: Contract | M7: Labour | N7: Material | O7: Contract | P7: Labour
A8: AMI | B8: 0 | C8: 0 | D8: 0 | E8: 0 | F8: 0 | G8: 0 | H8: 0 | I8: 0 | J8: 0 | K8: 0 | L8: 0 | M8: 0 | N8: 0 | O8: 0 | P8: 0
A9: Compliance | B9: 241.0689362 | C9: 562.1257758 | D9: 232.484393 | E9: 13.98311695 | F9: 313.8395937 | G9: 123.9296136 | H9: 0 | I9: 304.2192093 | J9: 115.7944879 | K9: 13.98311695 | L9: 324.8023574 | M9: 126.7264607 | N9: 0 | O9: 316.3006223 | P9: 118.9268459
A10: Compliance - metering contestability | B10: 0 | C10: 1397 | D10: 987 | E10: 0 | F10: 3244 | G10: 1359 | H10: 0 | I10: 730 | J10: 452 | K10: 0 | L10: 0 | M10: 0 | N10: 0 | O10: 0 | P10: 0
A11: Compliance - RIN Reporting | B11: 689.114 | C11: 1450.934426 | D11: 1878.985878 | E11: 0 | F11: 700.4155742 | G11: 574.4812466 | H11: 0 | I11: 0 | J11: 0 | K11: 0 | L11: 0 | M11: 0 | N11: 0 | O11: 0 | P11: 0
A12: Currency | B12: 1241.505551 | C12: 1082.088638 | D12: 395.9034793 | E12: 543.8352576 | F12: 1130.323524 | G12: 445.0107951 | H12: 1027.108722 | I12: 1361.501755 | J12: 499.4346027 | K12: 925.8578524 | L12: 1194.252833 | M12: 435.3798115 | N12: 772.9982828 | O12: 1696.626561 | P12: 640.3560295
A13: Currency - IEE / MTS Upgrade | B13: 0 | C13: 0 | D13: 0 | E13: 0 | F13: 0 | G13: 0 | H13: 0 | I13: 805.4275361 | J13: 313.2145484 | K13: 0 | L13: 0 | M13: 0 | N13: 0 | O13: 0 | P13: 0
A14: Currency - Refresh Telephony Solution | B14: 0 | C14: 0 | D14: 0 | E14: 55.93246779 | F14: 39.43238979 | G14: 20.04395916 | H14: 251.696105 | I14: 55.93246779 | J14: 47.81001075 | K14: 251.696105 | L14: 219.5349361 | M14: 104.9738318 | N14: 55.93246779 | O14: 39.71205213 | P14: 20.07136607
A15: Currency - USB Upgrade | B15: 0 | C15: 379.7814563 | D15: 119.9685154 | E15: 0 | F15: 0 | G15: 0 | H15: 0 | I15: 0 | J15: 0 | K15: 0 | L15: 212.5433776 | M15: 67.11585709 | N15: 0 | O15: 0 | P15: 0
A16: Customer Engagement | B16: 41.94935084 | C16: 95.36485758 | D16: 39.23042044 | E16: 0 | F16: 13.98311695 | G16: 1.39775237 | H16: 83.89870168 | I16: 70.29407512 | J16: 57.20297379 | K16: 27.96623389 | L16: 293.6454559 | M16: 89.00511506 | N16: 27.96623389 | O16: 69.91558473 | P16: 29.21850312
A17: Customer Engagement - Billing / CRM Implementation | B17: 2490.548496 | C17: 3152.187068 | D17: 999.8075222 | E17: 1132.632473 | F17: 3072.867633 | G17: 813.0339851 | H17: 0 | I17: 0 | J17: 0 | K17: 0 | L17: 0 | M17: 0 | N17: 0 | O17: 0 | P17: 0
A18: Device Replacement | B18: 319.682579 | C18: 0 | D18: 0 | E18: 229.5759327 | F18: 0 | G18: 0 | H18: 313.9936877 | I18: 0 | J18: 0 | K18: 158.9307089 | L18: 0 | M18: 0 | N18: 171.5868281 | O18: 0 | P18: 0
A19: Device Replacement - mobile devices | B19: 0 | C19: 0 | D19: 0 | E19: 0 | F19: 0 | G19: 0 | H19: 0 | I19: 0 | J19: 0 | K19: 0 | L19: 0 | M19: 0 | N19: 0 | O19: 0 | P19: 0
A20: Infrastructure | B20: 60.3104139 | C20: 30.25946507 | D20: 7.768851978 | E20: 60.3104139 | F20: 29.42047806 | G20: 7.49475492 | H20: 335.5948067 | I20: 40.61771065 | J20: 26.27430471 | K20: 55.93246779 | L20: 15.01388521 | M20: 3.912364257 | N20: 60.3104139 | O20: 29.42047806 | P20: 7.382750153
A21: Infrastructure - Data Warehouse Hardware Refresh | B21: 0 | C21: 0 | D21: 0 | E21: 880.9363676 | F21: 74.39018216 | G21: 23.49155257 | H21: 0 | I21: 0 | J21: 0 | K21: 0 | L21: 0 | M21: 0 | N21: 0 | O21: 0 | P21: 0
A22: Infrastructure - Network Infrastructure Refresh | B22: 100.5096938 | C22: 172.8000312 | D22: 36.91551264 | E22: 100.5096938 | F22: 172.8000312 | G22: 36.91551264 | H22: 139.8311695 | I22: 4.528217083 | J22: 8.389786269 | K22: 223.7298711 | L22: 4.528217083 | M22: 12.86469132 | N22: 27.96623389 | O22: 4.528217083 | P22: 20.41532278
A23: Infrastructure - SAN Storage Growth | B23: 33.00015599 | C23: 8.389870168 | D23: 2.240095335 | E23: 205.8314815 | F23: 19.01703905 | G23: 4.48019067 | H23: 208.6281048 | I23: 19.01703905 | J23: 4.48019067 | K23: 76.06815619 | L23: 19.01703905 | M23: 4.48019067 | N23: 78.3054549 | O23: 19.01703905 | P23: 4.48019067
A24: Infrastructure - Server Refresh | B24: 171.9923384 | C24: 25.1696105 | D24: 7.550631455 | E24: 103.4750654 | F24: 14.82210396 | G24: 6.443420289 | H24: 626.4436392 | I24: 79.7037666 | J24: 30.48039832 | K24: 265.679222 | L24: 20.41535074 | M24: 6.720286005 | N24: 107.6700005 | O24: 18.73737671 | P24: 6.443420289
A25: Infrastructure - Storage Infrastructure Refresh | B25: 0 | C25: 0 | D25: 0 | E25: 323.0100015 | F25: 4.194935084 | G25: 8.960381339 | H25: 1129.276525 | I25: 27.96623389 | J25: 22.37578374 | K25: 0 | L25: 0 | M25: 0 | N25: 0 | O25: 0 | P25: 0
A26: Security | B26: 730.8509124 | C26: 685.6388343 | D26: 161.3138515 | E26: 582.6298728 | F26: 727.5881851 | G26: 147.7807579 | H26: 1113.988317 | I26: 804.0292244 | J26: 185.6215893 | K26: 1060.176096 | L26: 943.8603939 | M26: 211.9698834 | N26: 838.9870168 | O26: 809.1563673 | P26: 181.3380479
A27: Smarter Networks - Asset Management Data Analytics | B27: 151.8634255 | C27: 194.2940666 | D27: 126.7731274 | E27: 0 | F27: 213.0704605 | G27: 119.3183037 | H27: 242.9814808 | I27: 283.0005307 | J27: 201.1971097 | K27: 242.9814808 | L27: 283.0005307 | M27: 201.1971097 | N27: 0 | O27: 241.1591197 | P27: 160.2238108
A28: Smarter Networks - DMS / OMS Integration | B28: 0 | C28: 0 | D28: 0 | E28: 0 | F28: 122.4626663 | G28: 51.31185718 | H28: 531.5219892 | I28: 721.1690349 | J28: 301.908742 | K28: 334.0995361 | L28: 450.9736283 | M28: 188.7199499 | N28: 0 | O28: 0 | P28: 0
A29: Smarter Networks - DMS Low Voltage Modelling | B29: 0 | C29: 0 | D29: 0 | E29: 0 | F29: 0 | G29: 0 | H29: 0 | I29: 0 | J29: 0 | K29: 0 | L29: 403.3492581 | M29: 325.5305512 | N29: 0 | O29: 403.3492581 | P29: 326.7921858
A30: Smarter Networks - DMS Mobility Switching Integration | B30: 0 | C30: 0 | D30: 0 | E30: 303.726851 | F30: 309.0724435 | G30: 285.7286052 | H30: 0 | I30: 0 | J30: 0 | K30: 0 | L30: 0 | M30: 0 | N30: 0 | O30: 0 | P30: 0
A31: Smarter Networks - Lidar Data Management and Application | B31: 0 | C31: 0 | D31: 0 | E31: 356.8790499 | F31: 227.430666 | G31: 95.15914104 | H31: 19.74224531 | I31: 374.6774434 | J31: 156.8054866 | K31: 10.63043978 | L31: 186.1238143 | M31: 77.90587653 | N31: 0 | O31: 0 | P31: 0
A32: Smarter Networks - Outage Notification System Extension | B32: 47.0776619 | C32: 131.2099996 | D32: 54.79627236 | E32: 0 | F32: 415.2553506 | G32: 173.7096778 | H32: 0 | I32: 108.8557034 | J32: 45.55644597 | K32: 0 | L32: 0 | M32: 0 | N32: 0 | O32: 0 | P32: 0
A33: Smarter Networks - Remote Diagnostics / Asset Condition Alerts | B33: 0 | C33: 0 | D33: 0 | E33: 0 | F33: 0 | G33: 0 | H33: 0 | I33: 0 | J33: 0 | K33: 303.726851 | L33: 250.9998696 | M33: 225.7114202 | N33: 303.726851 | O33: 250.9998696 | P33: 226.3422375
A34: Smarter Networks - Smart Network Advanced Analytics | B34: 0 | C34: 0 | D34: 0 | E34: 80.48761551 | F34: 153.5642959 | G34: 66.26609167 | H34: 68.33854147 | I34: 161.2789579 | J34: 69.69538043 | K34: 68.33854147 | L34: 161.2789579 | M34: 69.67260092 | N34: 68.33854147 | O34: 161.2789579 | P34: 69.64283568
A35: Smarter Networks - Smart Network Demand Management | B35: 197.4224531 | C35: 224.2719068 | D35: 172.8094922 | E35: 151.8634255 | F35: 222.3280549 | G35: 167.6480188 | H35: 151.8634255 | I35: 222.3280549 | J35: 167.6480188 | K35: 0 | L35: 215.7675549 | M35: 150.8276258 | N35: 0 | O35: 236.1779993 | P35: 158.3413118
A36: Smarter Networks - Storage Integration to Network Management | B36: 60.74537019 | C36: 147.7327403 | D36: 81.09564629 | E36: 60.74537019 | F36: 137.7704996 | G36: 77.384742 | H36: 364.4722212 | I36: 380.2660174 | J36: 243.4301765 | K36: 0 | L36: 190.7404624 | M36: 85.59010511 | N36: 0 | O36: 190.7404624 | P36: 85.50080942
B37: =SUM(B8:B36) -> 6577.641339 | C37: 9739.248746 | D37: 5304.64369 | E37: 5186.364456 | F37: 11358.04922 | G37: 4608.99036 | H37: 6609.379681 | I37: 6554.812977 | J37: 2949.320036 | K37: 4019.796679 | L37: 5389.847922 | M37: 2388.303731 | N37: 2513.788325 | O37: 4487.119965 | P37: 2055.475667
A39: AMI | B39: =SUM(B8) -> 0 | C39: 0 | D39: 0 | E39: 0 | F39: 0 | G39: 0 | H39: 0 | I39: 0 | J39: 0 | K39: 0 | L39: 0 | M39: 0 | N39: 0 | O39: 0 | P39: 0
A40: Compliance | B40: =SUM(B9:B11) -> 930.1829362 | C40: 3410.060202 | D40: 3098.470271 | E40: 13.98311695 | F40: 4258.255168 | G40: 2057.41086 | H40: 0 | I40: 1034.219209 | J40: 567.7944879 | K40: 13.98311695 | L40: 324.8023574 | M40: 126.7264607 | N40: 0 | O40: 316.3006223 | P40: 118.9268459
A41: Currency | B41: =SUM(B12:B15) -> 1241.505551 | C41: 1461.870094 | D41: 515.8719947 | E41: 599.7677254 | F41: 1169.755914 | G41: 465.0547543 | H41: 1278.804827 | I41: 2222.861759 | J41: 860.4591618 | K41: 1177.553957 | L41: 1626.331147 | M41: 607.4695004 | N41: 828.9307506 | O41: 1736.338613 | P41: 660.4273956
A42: Customer Engagement | B42: =SUM(B16:B17) -> 2532.497847 | C42: 3247.551926 | D42: 1039.037943 | E42: 1132.632473 | F42: 3086.85075 | G42: 814.4317374 | H42: 83.89870168 | I42: 70.29407512 | J42: 57.20297379 | K42: 27.96623389 | L42: 293.6454559 | M42: 89.00511506 | N42: 27.96623389 | O42: 69.91558473 | P42: 29.21850312
A43: Device Replacement | B43: =SUM(B18:B19) -> 319.682579 | C43: =SUM(C18:C19) -> 0 | D43: 0 | E43: 229.5759327 | F43: 0 | G43: 0 | H43: 313.9936877 | I43: 0 | J43: 0 | K43: 158.9307089 | L43: 0 | M43: 0 | N43: 171.5868281 | O43: 0 | P43: 0
A44: Infrastructure | B44: =SUM(B20:B25) -> 365.8126021 | C44: 236.618977 | D44: 54.47509141 | E44: 1674.073024 | F44: 314.6447695 | G44: 87.78581243 | H44: 2439.774245 | I44: 171.8329673 | J44: 92.00046371 | K44: 621.4097171 | L44: 58.97449208 | M44: 27.97753225 | N44: 274.2521032 | O44: 71.70311089 | P44: 38.72168389
A45: Security | B45: =SUM(B26) -> 730.8509124 | C45: 685.6388343 | D45: 161.3138515 | E45: 582.6298728 | F45: 727.5881851 | G45: 147.7807579 | H45: 1113.988317 | I45: 804.0292244 | J45: 185.6215893 | K45: 1060.176096 | L45: 943.8603939 | M45: 211.9698834 | N45: 838.9870168 | O45: 809.1563673 | P45: 181.3380479
A46: Smarter Networks | B46: =SUM(B27:B36) -> 457.1089107 | C46: 697.5087133 | D46: 435.4745382 | E46: 953.702312 | F46: 1800.954437 | G46: 1036.526437 | H46: 1378.919903 | I46: 2251.575743 | J46: 1186.24136 | K46: 959.7768491 | L46: 2142.234076 | M46: 1325.155239 | N46: 372.0653924 | O46: 1483.705667 | P46: 1026.843191
B47: =SUM(B39:B46) -> 6577.641339 | C47: =SUM(C39:C46) -> 9739.248746 | D47: 5304.64369 | E47: 5186.364456 | F47: 11358.04922 | G47: 4608.99036 | H47: 6609.379681 | I47: 6554.812977 | J47: 2949.320036 | K47: 4019.796679 | L47: 5389.847922 | M47: 2388.303731 | N47: 2513.788325 | O47: 4487.119965 | P47: 2055.475667
A50: Recurrent | B50: 4799.90742 | C50: 4264.190433 | D50: 1664.741517 | E50: 3789.392977 | F50: 5696.48207 | G50: 1914.40907 | H50: 6508.59236 | I50: 5484.117967 | J50: 2309.095367 | K50: 3613.487725 | L50: 4931.704576 | M50: 2262.014132 | N50: 2325.464093 | O50: 4551.52819 | P50: 2094.66957
A51: Non-Recurrent | B51: 1893.430379 | C51: 3992.891103 | D51: 1487.707284 | E51: 2319.584851 | F51: 2835.930766 | G51: 1517.276858 | H51: 513.0676436 | I51: 1005.25027 | J51: 688.5972419 | K51: 809.7214816 | L51: 1739.058429 | M51: 1075.795419 | N51: 415.6414152 | O51: 556.0144745 | P51: 388.8713488
A52: Device Replacement | B52: 355.2028655 | C52: 0 | D52: 0 | E52: 255.0843696 | F52: 0 | G52: 0 | H52: 348.8818752 | I52: 0 | J52: 0 | K52: 176.5896766 | L52: 0 | M52: 0 | N52: 190.6520312 | O52: 0 | P52: 0
B53: =SUM(B50:B52)-B37 -> 470.8993258 | C53: =SUM(C50:C52)-C37 -> -1482.16721 | D53: -2152.194889 | E53: 1177.697741 | F53: -2825.636388 | G53: -1177.304432 | H53: 761.1621975 | I53: -65.44474057 | J53: 48.3725725 | K53: 580.0022034 | L53: 1280.915083 | M53: 949.5058202 | N53: 417.9692147 | O53: 620.4226998 | P53: 428.0652514
A55: IT Category | B55: 2016 CP AMI (Excl margins) | E55: 2017 CP AMI (Excl margins) | H55: 2018 CP AMI (Excl margins) | K55: 2019 CP AMI (Excl margins) | N55: 2020 CP AMI (Excl margins)
B56: Material | C56: Contract | D56: Labour | E56: Material | F56: Contract | G56: Labour | H56: Material | I56: Contract | J56: Labour | K56: Material | L56: Contract | M56: Labour | N56: Material | O56: Contract | P56: Labour
A57: AMI | B57: 64.90449137 | C57: 225.4048828 | D57: 97.7729119 | E57: 207.1894182 | F57: 278.5059559 | G57: 65.33204951 | H57: 22.62157586 | I57: 151.5867324 | J57: 59.81654886 | K57: 13.65094645 | L57: 91.82513096 | M57: 36.12299618 | N57: 413.8288131 | O57: 399.5427804 | P57: 104.1691314
A58: Compliance | B58: 0 | C58: 0 | D58: 0 | E58: 0 | F58: 0 | G58: 0 | H58: 0 | I58: 0 | J58: 0 | K58: 0 | L58: 0 | M58: 0 | N58: 0 | O58: 0 | P58: 0
A59: Compliance - metering contestability | B59: 0 | C59: 0 | D59: 0 | E59: 0 | F59: 0 | G59: 0 | H59: 0 | I59: 0 | J59: 0 | K59: 0 | L59: 0 | M59: 0 | N59: 0 | O59: 0 | P59: 0
A60: Compliance - RIN Reporting | B60: 0 | C60: 0 | D60: 0 | E60: 0 | F60: 0 | G60: 0 | H60: 0 | I60: 0 | J60: 0 | K60: 0 | L60: 0 | M60: 0 | N60: 0 | O60: 0 | P60: 0
A61: Currency | B61: 0 | C61: 0 | D61: 0 | E61: 0 | F61: 0 | G61: 0 | H61: 0 | I61: 0 | J61: 0 | K61: 0 | L61: 0 | M61: 0 | N61: 0 | O61: 0 | P61: 0
A62: Currency - IEE / MTS Upgrade | B62: 0 | C62: 0 | D62: 0 | E62: 0 | F62: 0 | G62: 0 | H62: 0 | I62: 0 | J62: 0 | K62: 0 | L62: 0 | M62: 0 | N62: 0 | O62: 0 | P62: 0
A63: Currency - Refresh Telephony Solution | B63: 0 | C63: 0 | D63: 0 | E63: 0 | F63: 0 | G63: 0 | H63: 0 | I63: 0 | J63: 0 | K63: 0 | L63: 0 | M63: 0 | N63: 0 | O63: 0 | P63: 0
A64: Currency - USB Upgrade | B64: 0 | C64: 0 | D64: 0 | E64: 0 | F64: 0 | G64: 0 | H64: 0 | I64: 0 | J64: 0 | K64: 0 | L64: 0 | M64: 0 | N64: 0 | O64: 0 | P64: 0
A65: Customer Engagement | B65: 0 | C65: 0 | D65: 0 | E65: 0 | F65: 0 | G65: 0 | H65: 0 | I65: 0 | J65: 0 | K65: 0 | L65: 0 | M65: 0 | N65: 0 | O65: 0 | P65: 0
A66: Customer Engagement - Billing / CRM Implementation | B66: 0 | C66: 0 | D66: 0 | E66: 0 | F66: 0 | G66: 0 | H66: 0 | I66: 0 | J66: 0 | K66: 0 | L66: 0 | M66: 0 | N66: 0 | O66: 0 | P66: 0
A67: Device Replacement | B67: 0 | C67: 0 | D67: 0 | E67: 0 | F67: 0 | G67: 0 | H67: 0 | I67: 0 | J67: 0 | K67: 0 | L67: 0 | M67: 0 | N67: 0 | O67: 0 | P67: 0
A68: Device Replacement - mobile devices | B68: 0 | C68: 0 | D68: 0 | E68: 0 | F68: 0 | G68: 0 | H68: 0 | I68: 0 | J68: 0 | K68: 0 | L68: 0 | M68: 0 | N68: 0 | O68: 0 | P68: 0
A69: Infrastructure | B69: 0 | C69: 0 | D69: 0 | E69: 0 | F69: 0 | G69: 0 | H69: 0 | I69: 0 | J69: 0 | K69: 0 | L69: 0 | M69: 0 | N69: 0 | O69: 0 | P69: 0
A70: Infrastructure - Data Warehouse Hardware Refresh | B70: 0 | C70: 0 | D70: 0 | E70: 0 | F70: 0 | G70: 0 | H70: 0 | I70: 0 | J70: 0 | K70: 0 | L70: 0 | M70: 0 | N70: 0 | O70: 0 | P70: 0
A71: Infrastructure - Network Infrastructure Refresh | B71: 0 | C71: 0 | D71: 0 | E71: 0 | F71: 0 | G71: 0 | H71: 0 | I71: 0 | J71: 0 | K71: 0 | L71: 0 | M71: 0 | N71: 0 | O71: 0 | P71: 0
A72: Infrastructure - SAN Storage Growth | B72: 0 | C72: 0 | D72: 0 | E72: 0 | F72: 0 | G72: 0 | H72: 0 | I72: 0 | J72: 0 | K72: 0 | L72: 0 | M72: 0 | N72: 0 | O72: 0 | P72: 0
A73: Infrastructure - Server Refresh | B73: 0 | C73: 0 | D73: 0 | E73: 0 | F73: 0 | G73: 0 | H73: 0 | I73: 0 | J73: 0 | K73: 0 | L73: 0 | M73: 0 | N73: 0 | O73: 0 | P73: 0
A74: Infrastructure - Storage Infrastructure Refresh | B74: 0 | C74: 0 | D74: 0 | E74: 0 | F74: 0 | G74: 0 | H74: 0 | I74: 0 | J74: 0 | K74: 0 | L74: 0 | M74: 0 | N74: 0 | O74: 0 | P74: 0
A75: Security | B75: 0 | C75: 0 | D75: 0 | E75: 0 | F75: 0 | G75: 0 | H75: 0 | I75: 0 | J75: 0 | K75: 0 | L75: 0 | M75: 0 | N75: 0 | O75: 0 | P75: 0
A76: Smarter Networks - Asset Management Data Analytics | B76: 0 | C76: 0 | D76: 0 | E76: 0 | F76: 0 | G76: 0 | H76: 0 | I76: 0 | J76: 0 | K76: 0 | L76: 0 | M76: 0 | N76: 0 | O76: 0 | P76: 0
A77: Smarter Networks - DMS / OMS Integration | B77: 0 | C77: 0 | D77: 0 | E77: 0 | F77: 0 | G77: 0 | H77: 0 | I77: 0 | J77: 0 | K77: 0 | L77: 0 | M77: 0 | N77: 0 | O77: 0 | P77: 0
A78: Smarter Networks - DMS Low Voltage Modelling | B78: 0 | C78: 0 | D78: 0 | E78: 0 | F78: 0 | G78: 0 | H78: 0 | I78: 0 | J78: 0 | K78: 0 | L78: 0 | M78: 0 | N78: 0 | O78: 0 | P78: 0
A79: Smarter Networks - DMS Mobility Switching Integration | B79: 0 | C79: 0 | D79: 0 | E79: 0 | F79: 0 | G79: 0 | H79: 0 | I79: 0 | J79: 0 | K79: 0 | L79: 0 | M79: 0 | N79: 0 | O79: 0 | P79: 0
A80: Smarter Networks - Lidar Data Management and Application | B80: 0 | C80: 0 | D80: 0 | E80: 0 | F80: 0 | G80: 0 | H80: 0 | I80: 0 | J80: 0 | K80: 0 | L80: 0 | M80: 0 | N80: 0 | O80: 0 | P80: 0
A81: Smarter Networks - Outage Notification System Extension | B81: 0 | C81: 0 | D81: 0 | E81: 0 | F81: 0 | G81: 0 | H81: 0 | I81: 0 | J81: 0 | K81: 0 | L81: 0 | M81: 0 | N81: 0 | O81: 0 | P81: 0
A82: Smarter Networks - Remote Diagnostics / Asset Condition Alerts | B82: 0 | C82: 0 | D82: 0 | E82: 0 | F82: 0 | G82: 0 | H82: 0 | I82: 0 | J82: 0 | K82: 0 | L82: 0 | M82: 0 | N82: 0 | O82: 0 | P82: 0
A83: Smarter Networks - Smart Network Advanced Analytics | B83: 0 | C83: 0 | D83: 0 | E83: 0 | F83: 0 | G83: 0 | H83: 0 | I83: 0 | J83: 0 | K83: 0 | L83: 0 | M83: 0 | N83: 0 | O83: 0 | P83: 0
A84: Smarter Networks - Smart Network Demand Management | B84: 0 | C84: 0 | D84: 0 | E84: 0 | F84: 0 | G84: 0 | H84: 0 | I84: 0 | J84: 0 | K84: 0 | L84: 0 | M84: 0 | N84: 0 | O84: 0 | P84: 0
A85: Smarter Networks - Storage Integration to Network Management | B85: 0 | C85: 0 | D85: 0 | E85: 0 | F85: 0 | G85: 0 | H85: 0 | I85: 0 | J85: 0 | K85: 0 | L85: 0 | M85: 0 | N85: 0 | O85: 0 | P85: 0
B86: =SUM(B57:B85) -> 64.90449137 | C86: 225.4048828 | D86: 97.7729119 | E86: 207.1894182 | F86: 278.5059559 | G86: 65.33204951 | H86: 22.62157586 | I86: 151.5867324 | J86: 59.81654886 | K86: 13.65094645 | L86: 91.82513096 | M86: 36.12299618 | N86: 413.8288131 | O86: 399.5427804 | P86: 104.1691314
A88: AMI | B88: =SUM(B57) -> 64.90449137 | C88: 225.4048828 | D88: 97.7729119 | E88: 207.1894182 | F88: 278.5059559 | G88: 65.33204951 | H88: 22.62157586 | I88: 151.5867324 | J88: 59.81654886 | K88: 13.65094645 | L88: 91.82513096 | M88: 36.12299618 | N88: 413.8288131 | O88: 399.5427804 | P88: 104.1691314
A89: Compliance | B89: =SUM(B58:B60) -> 0 | C89: 0 | D89: 0 | E89: 0 | F89: 0 | G89: 0 | H89: 0 | I89: 0 | J89: 0 | K89: 0 | L89: 0 | M89: 0 | N89: 0 | O89: 0 | P89: 0
A90: Currency | B90: =SUM(B61:B64) -> 0 | C90: 0 | D90: 0 | E90: 0 | F90: 0 | G90: 0 | H90: 0 | I90: 0 | J90: 0 | K90: 0 | L90: 0 | M90: 0 | N90: 0 | O90: 0 | P90: 0
A91: Customer Engagement | B91: =SUM(B65:B66) -> 0 | C91: 0 | D91: 0 | E91: 0 | F91: 0 | G91: 0 | H91: 0 | I91: 0 | J91: 0 | K91: 0 | L91: 0 | M91: 0 | N91: 0 | O91: 0 | P91: 0
A92: Device Replacement | B92: =SUM(B67:B68) -> 0 | C92: =SUM(C67:C68) -> 0 | D92: 0 | E92: 0 | F92: 0 | G92: 0 | H92: 0 | I92: 0 | J92: 0 | K92: 0 | L92: 0 | M92: 0 | N92: 0 | O92: 0 | P92: 0
A93: Infratructure | B93: =SUM(B69:B74) -> 0 | C93: 0 | D93: 0 | E93: 0 | F93: 0 | G93: 0 | H93: 0 | I93: 0 | J93: 0 | K93: 0 | L93: 0 | M93: 0 | N93: 0 | O93: 0 | P93: 0
A94: Security | B94: =SUM(B75) -> 0 | C94: 0 | D94: 0 | E94: 0 | F94: 0 | G94: 0 | H94: 0 | I94: 0 | J94: 0 | K94: 0 | L94: 0 | M94: 0 | N94: 0 | O94: 0 | P94: 0
A95: Smarter Networks | B95: =SUM(B76:B85) -> 0 | C95: 0 | D95: 0 | E95: 0 | F95: 0 | G95: 0 | H95: 0 | I95: 0 | J95: 0 | K95: 0 | L95: 0 | M95: 0 | N95: 0 | O95: 0 | P95: 0
B96: =SUM(B88:B95) -> 64.90449137 | C96: =SUM(C88:C95) -> 225.4048828 | D96: 97.7729119 | E96: 207.1894182 | F96: 278.5059559 | G96: 65.33204951 | H96: 22.62157586 | I96: 151.5867324 | J96: 59.81654886 | K96: 13.65094645 | L96: 91.82513096 | M96: 36.12299618 | N96: 413.8288131 | O96: 399.5427804 | P96: 104.1691314
A99: Recurrent | B99: 54.96094154 | C99: 225.4048828 | D99: 97.7729119 | E99: 207.1894182 | F99: 278.5059559 | G99: 65.33204951 | H99: 22.62157586 | I99: 151.5867324 | J99: 59.81654886 | K99: 13.65094645 | L99: 91.82513096 | M99: 36.12299618 | N99: 413.8288131 | O99: 399.5427804 | P99: 104.1691314
A100: Non-Recurrent | B100: 9.943549829 | C100: 0 | D100: 0 | E100: 0 | F100: 0 | G100: 0 | H100: 0 | I100: 0 | J100: 0 | K100: 0 | L100: 0 | M100: 0 | N100: 0 | O100: 0 | P100: 0
A101: Device Replacement | B101: 0 | C101: 0 | D101: 0 | E101: 0 | F101: 0 | G101: 0 | H101: 0 | I101: 0 | J101: 0 | K101: 0 | L101: 0 | M101: 0 | N101: 0 | O101: 0 | P101: 0
B102: =SUM(B99:B101)-B86 -> 0 | C102: =SUM(C99:C101)-C86 -> 0 | D102: 0 | E102: 0 | F102: 0 | G102: 0 | H102: 0 | I102: 0 | J102: 0 | K102: 0 | L102: 0 | M102: 0 | N102: 0 | O102: 0 | P102: 0
